Cogmind - Beta 15 @@@ ROGUE MODE // 2025.10.09 @ 00:14:37 Player: Blue Cog Result: Destroyed by Y-45 Defender with Heavy Assault Rifle Performance ------------- Evolutions (0) 0 Regions Visited (3) 600 Robots Destroyed (25) 125 Value Destroyed (506) 506 Prototype IDs (2) 40 Alien Tech Used (0) 0 Bonus (0) 0 TOTAL SCORE: 1271 Bonus ------- None Cogmind --------- Core Integrity 0/250 Matter 300/300 Energy 98/100 System Corruption 0% Temperature Cool (9) Movement Rolling (107) Ox1 Location -10/Subcaves Parts ------- > --- POWER (1) -------- Subdweller Power Source > --- PROPULSION (2) --- Wheel Subdweller Monowheel > --- UTILITY (2) ------ Large Storage Unit > --- WEAPON (2) ------- Subdweller Beam Cannon Battle Rifle > --- INVENTORY (15) --- Light Treads Light Treads Wheel Small Storage Unit Medium Matter Pod (100) Compact Matter Pod (150) Sensor Array Sensor Array Small Laser Particle Gun Light Assault Rifle Light Assault Rifle Subdweller Machine Gun Mining Laser Flamer Peak State ------------ > --- POWER ------------ Subdweller Power Source > --- PROPULSION ------- Wheel Subdweller Monowheel > --- UTILITY ---------- Large Storage Unit > --- WEAPON ----------- Subdweller Beam Cannon Battle Rifle > --- INVENTORY -------- Light Treads Light Treads Wheel Small Storage Unit Medium Matter Pod Compact Matter Pod Sensor Array Sensor Array Small Laser Particle Gun Light Assault Rifle Light Assault Rifle Subdweller Machine Gun Mining Laser Flamer [Rating: 12] Favorites ----------- Power Light Ion Engine Engine Light Ion Engine Propulsion Wheel Wheel Wheel Utility Large Storage Unit Device Seismic Detector Storage Large Storage Unit Weapon Medium Laser Energy Gun Medium Laser Energy Cannon Subdweller Beam Cannon Ballistic Gun Assault Rifle Special Weapon Mining Laser Build | -11 -10 -10 -10 ------- Run | Yrd Mat Min Sub Slots Evolved . | . . . . Power . | . . . . Propulsion . | . . . . Utility . | . . . . Weapon . | . . . . Parts Attached 23 | 7 8 1 7 Power 4 | 1 1 1 1 Engine 4 | 1 1 1 1 Core . | . . . . Reactor . | . . . . Propulsion 7 | 2 2 . 3 Treads . | . . . . Leg . | . . . . Wheel 7 | 2 2 . 3 Hover . | . . . . Flight . | . . . . Utility 4 | 2 2 . . Device 2 | 1 1 . . Storage 2 | 1 1 . . Processor . | . . . . Hackware . | . . . . Protection . | . . . . Artifact . | . . . . Weapon 8 | 2 3 . 3 Energy Gun 3 | 1 2 . . Energy Cannon 1 | . . . 1 Ballistic Gun 3 | 1 . . 2 Ballistic Cannon . | . . . . Launcher . | . . . . Special Weapon 1 | . 1 . . Impact Weapon . | . . . . Slashing Weapon . | . . . . Piercing Weapon . | . . . . Special Melee Weapon . | . . . . Unidentified Prototypes . | . . . . Parts Lost 12 | . 7 1 4 Power 3 | . 2 . 1 Propulsion 4 | . 2 1 1 Utility 2 | . 1 . 1 Weapon 3 | . 2 . 1 Highest Loss Streak 4 | . 4 1 2 To Critical Strikes . | . . . . Average Backups 10 | 2 8 11 13 Power . | . . . . Propulsion 2 | 1 3 2 2 Utility 3 | . 3 4 5 Weapon 3 | . 1 4 5 Tool/Special . | . . . . Unused Backups 12 | . . . 12 Power . | . . . . Propulsion 3 | . . . 3 Utility 4 | . . . 4 Weapon 5 | . . . 5 Tool/Special . | . . . . Average Slot Usage (%) 86 | . 93 83 78 Engine 11 | . 11 11 11 Wheel 22 | . 27 14 20 Device 9 | . 12 14 4 Storage 14 | . 14 14 14 Energy Gun 13 | . 11 28 8 Energy Cannon 3 | . . . 10 Ballistic Gun 7 | . 10 . 8 Special Weapon 2 | . 5 . . Peak Build Rating 12 | 7 8 7 12 Average Rating 7 | 5 7 6 9 On Entrance 5 | . 7 7 7 Naked Turns . | . . . . Heaviest Build 37 | 13 28 28 37 Greatest Support 32 | 26 32 10 30 Greatest Overweight (x) 2 | 1 1 2 1 Average Overweight (x) . | . . 2 1 Largest Inventory Capacity 15 | 8 15 15 15 Average Capacity 14 | 7 13 15 15 Most Carried 15 | 5 11 13 15 Average Carried 10 | 2 9 11 13 Final Capacity 15 | 8 15 15 15 Final Carried 15 | 5 9 13 15 Class Distribution -------------------- 71% | Mutant 28% | Scavenger-Mutant Dominant Class ---------------- Mutant | -10/Materials Mutant | -10/Mines Scavenger-Mutant | -10/Subcaves Resources | -11 -10 -10 -10 ----------- Run | Yrd Mat Min Sub Matter Collected 638 | 240 328 10 60 Remotely . | . . . . Salvage Created 831 | 105 598 51 77 Parts 50 | 7 32 7 4 Haulers Intercepted 1 | . 1 . . Recyclers Shooed . | . . . . Parts Field Recycled . | . . . . Retrieved Matter . | . . . . Parts Self-Destructed . | . . . . Prevented . | . . . . Kills | -11 -10 -10 -10 ------- Run | Yrd Mat Min Sub Combat Hostiles Destroyed 19 | . 14 3 2 Guns 18 | . 14 3 1 Cannons 1 | . . . 1 Classes Destroyed 8 | 2 4 1 1 Worker 1 | . . 1 . Tunneler 1 | 1 . . . Hauler 1 | . 1 . . Recycler 2 | 1 1 . . Watcher 1 | . 1 . . Swarmer 9 | . 6 3 . Grunt 8 | . 8 . . Subdweller 2 | . . . 2 Best Kill Streak 3 | 2 3 3 1 Combat Bots Only 3 | . 3 3 1 Max Kills in Single Turn 1 | 1 1 1 1 Gunslinging . | . . . . Exploded . | . . . . Melee . | . . . . Uniques/NPCs Destroyed . | . . . . Combat | -11 -10 -10 -10 -------- Run | Yrd Mat Min Sub Hostile Shots Fired 111 | . 67 23 21 Missed 24 | . 16 6 2 Hits 87 | . 51 17 19 Projectile 87 | . 51 17 19 Damage Taken 1103 | . 552 137 414 Core 254 | . 119 47 88 Absorbed by Shields . | . . . . Core Remaining (%) 100 | 100 . . . Volleys Fired 76 | 5 49 9 13 Largest 2 | 2 2 2 2 Hottest 130 | 60 120 100 130 Shots Fired 131 | 10 83 18 20 Gun 109 | 10 71 18 10 Cannon 10 | . . . 10 Launcher . | . . . . Special 12 | . 12 . . Kinetic 26 | 5 21 . . Thermal 86 | . 48 18 20 Explosive . | . . . . Electromagnetic 19 | 5 14 . . Robot Hit Streak 11 | 4 7 8 11 Robot Miss Streak 3 | 2 3 2 2 Penetration Max . | . . . . Secondary Targets 2 | . 2 . . Max Gunslinging Chain 1 | . 1 . . Shots Hit Robots 79 | 6 46 12 15 Core Hits 38 | 3 27 4 4 Critical Kills . | . . . . Critical Parts Destroyed . | . . . . Critical Strikes 3 | . 2 . 1 Burn 3 | . 2 . 1 Melee Attacks . | . . . . Impact . | . . . . Slashing . | . . . . Piercing . | . . . . Sneak Attacks . | . . . . Combat Hostiles . | . . . . Follow-up Attacks . | . . . . Damage Inflicted 1081 | 73 610 157 241 Guns 892 | 73 562 157 100 Cannons 141 | . . . 141 Explosions . | . . . . Melee . | . . . . Ramming . | . . . . Kinetic 171 | 34 137 . . Thermal 761 | . 363 157 241 Explosive . | . . . . Electromagnetic 149 | 39 110 . . Impact . | . . . . Slashing . | . . . . Piercing . | . . . . Highest Corruption . | . . . . Average Corruption . | . . . . Corruption Purged . | . . . . Corruption Blocked . | . . . . Overload Shots . | . . . . Overflow Damage . | . . . . Projectiles . | . . . . Explosions . | . . . . Melee . | . . . . Knockbacks . | . . . . Impact . | . . . . Kinetic . | . . . . Secondary . | . . . . Self-Inflicted Damage . | . . . . Shots . | . . . . Rammed . | . . . . Targets Rammed . | . . . . Kicked . | . . . . Crushed . | . . . . Highest Temperature 282 | . 282 31 10 Average Temperature 55 | . 65 14 5 Received Heat Transfer 282 | . 195 6 81 Siege Activations . | . . . . Martial Activations . | . . . . Shielding Activations . | . . . . Robots Disrupted . | . . . . Combat Hostiles . | . . . . Robots Corrupted . | . . . . Combat Hostiles . | . . . . Parts Fried . | . . . . Impact Corruptions . | . . . . Robots Melted . | . . . . Combat Hostiles . | . . . . Parts Melted 7 | . 2 4 1 Heat Transferred 2172 | . 1173 444 555 Parts Sabotaged . | . . . . Parts Stolen . | . . . . Parts Stripped . | . . . . Power Chain Reactions . | . . . . Alert | -11 -10 -10 -10 ------- Run | Yrd Mat Min Sub Maximum Alert Level . | . . . . Low Security (%) 100 | 100 100 100 . Level 1 . | . . . . Level 2 . | . . . . Level 3 . | . . . . Level 4 . | . . . . Level 5 . | . . . . High Security . | . . . . Max Security . | . . . . Peak Influence 164 | 5 164 107 . Initial 57 | . . 57 . Average 44 | . 46 54 . Influence Increases 540 | 10 455 75 . Destroy 0b10 Robot/C 340 | . 280 60 . Destroy 0b10 Robot/NC 30 | 10 15 5 . Destroy Leader 64 | . 54 10 . Successful Hack 19 | . 19 . . Select Force Hacks 30 | . 30 . . Destroy Structure 12 | . 12 . . Lose Combat Pursuer 45 | . 45 . . Influence Decreases 540 | 10 307 218 5 Entered New Map 94 | . . 91 3 Time Decay 366 | 10 237 117 2 Lost Part 80 | . 70 10 . Squads Dispatched 2 | . 2 . . Investigation 2 | . 2 . . Extermination . | . . . . Reinforcement . | . . . . Assault . | . . . . Garrison . | . . . . Intercept . | . . . . Searches Triggered . | . . . . Construction Impeded . | . . . . Haulers Reinforced . | . . . . Active Scanning Responses . | . . . . Cargo Convoy Interrupts . | . . . . Stealth | -11 -10 -10 -10 --------- Run | Yrd Mat Min Sub Distress Signals 2 | . 2 . . Communications Jammed . | . . . . Distress Signals . | . . . . Times Spotted 32 | . 20 5 7 Peak Tracking Total 6 | . 6 3 2 Tactical Retreats 4 | . 2 . 2 Traps | -11 -10 -10 -10 ------- Run | Yrd Mat Min Sub Traps Triggered . | . . . . Indirectly . | . . . . Trap Hack Attempts . | . . . . Triggered . | . . . . Disarmed . | . . . . Reprogrammed . | . . . . Reused 1 | . . . 1 Traps Extracted . | . . . . Installed 1 | . . . 1 Triggered . | . . . . Machines | -11 -10 -10 -10 ---------- Run | Yrd Mat Min Sub Machines Disabled . | . . . . Max in Single Turn . | . . . . Machines Repaired . | . . . . Machines Dismantled . | . . . . Machines Sabotaged . | . . . . Overloaded Fab Kills . | . . . . Hacking | -11 -10 -10 -10 --------- Run | Yrd Mat Min Sub Machines Accessed 5 | . 5 . . Terminals 4 | . 4 . . Fabricators . | . . . . Repair Stations . | . . . . Recycling Units 1 | . 1 . . Scanalyzers . | . . . . Garrison Access . | . . . . Total Hacks 11 | . 11 . . Successful 4 | . 4 . . Failed 7 | . 7 . . Catastrophic . | . . . . Database Lockouts . | . . . . Manual 6 | . 6 . . Terminals 10 | . 10 . . Fabricators . | . . . . Repair Stations . | . . . . Recycling Units 1 | . 1 . . Scanalyzers . | . . . . Garrison Access . | . . . . Terminal Hacks 3 | . 3 . . Robot Analysis 2 | . 2 . . Prototype ID Bank 1 | . 1 . . Fabricator Hacks . | . . . . Repair Station Hacks . | . . . . Recycling Unit Hacks . | . . . . Scanalyzer . | . . . . Garrison Access Hacks . | . . . . Unauthorized Hacks 1 | . 1 . . Terminals . | . . . . Fabricators . | . . . . Repair Stations . | . . . . Recycling Units 1 | . 1 . . Tunnel 1 | . 1 . . Scanalyzers . | . . . . Garrison Access . | . . . . Data Cores Recovered . | . . . . Used . | . . . . Hacking Detections 4 | . 4 . . Full Trace Events 1 | . 1 . . Feedback Events . | . . . . Feedback Blocked . | . . . . Robot Schematics Acquired . | . . . . Robots Built . | . . . . Authchips . | . . . . Time . | . . . . Total Robot Build Rating . | . . . . Part Schematics Acquired . | . . . . Parts Built . | . . . . Authchips . | . . . . Time . | . . . . Total Part Build Rating . | . . . . Parts Repaired . | . . . . Time . | . . . . Parts Recycled . | . . . . Recycled Matter . | . . . . Retrieved Matter . | . . . . Retrieved Components . | . . . . Parts Scanalyzed . | . . . . Part Schematics Acquired . | . . . . Parts Damaged . | . . . . Bothacking | -11 -10 -10 -10 ------------ Run | Yrd Mat Min Sub Used RIF Installer . | . . . . Robots Hacked . | . . . . Non-combat . | . . . . Combat . | . . . . Robot Hacks Applied . | . . . . Relay Couplers Released . | . . . . Fabnet Peak Effective % . | . . . . Robots Rewired . | . . . . Allies Hacked . | . . . . Hacks Repelled . | . . . . Allies | -11 -10 -10 -10 -------- Run | Yrd Mat Min Sub Total Allies . | . . . . Largest Group . | . . . . Highest-Rated Group . | . . . . Highest-Rated Ally . | . . . . Total Orders . | . . . . Ally Attacks . | . . . . Total Damage . | . . . . Kills . | . . . . Allies Corrupted . | . . . . Allies Melted . | . . . . Intel | -11 -10 -10 -10 ------- Run | Yrd Mat Min Sub Active Infowar (turns) 526 | 32 494 . . Seismic 526 | 32 494 . . Robot Analysis Total 2 | . 2 . . Derelict Logs Recovered 1 | . . . 1 Drone Launches . | . . . . Drone Recoveries . | . . . . Exploration | -11 -10 -10 -10 ------------- Run | Yrd Mat Min Sub Turns Passed 1400 | 73 598 254 475 Spaces Moved 980 | 49 355 202 374 Core 1 | 1 . . . Treads . | . . . . Legs . | . . . . Wheels 979 | 48 355 202 374 Hover . | . . . . Flight . | . . . . Fastest Speed 50 | 50 90 110 95 Average Speed 105 | 87 99 110 112 Slowest Speed 120 | 95 115 110 120 Overloaded Moves . | . . . . Propulsion Burnouts . | . . . . Robots Hopped . | . . . . Potential Cave-ins . | . . . . Cave-ins Triggered . | . . . . Exploration Rate (%) 34 | 4 54 55 23 Regions Visited 3 Branch Regions 2 Pre-discovered Areas 2 | . 1 . 1 Known Exits Taken . | . . . . Unknown Exits Taken 3 | 1 1 1 . Scrap Searched 1 | . . 1 . Spaces Dug 10 | . 10 . . Terrain Destroyed 11 | . 10 . 1 Melee . | . . . . Projectile 11 | . 10 . 1 AOE . | . . . . Terrain Rammed . | . . . . Walls Destroyed . | . . . . Machines Disabled . | . . . . Actions | -11 -10 -10 -10 --------- Run | Yrd Mat Min Sub Total 1176 | 65 487 215 409 Wait 71 | . 62 . 9 Move 977 | 48 354 201 374 Hop . | . . . . Pick Up 19 | 5 7 4 3 Fast Attach 13 | 7 2 1 3 Attach 5 | . 4 . 1 Detach . | . . . . Swap 12 | . 9 . 3 Drop 2 | . . . 2 Fire 76 | 5 49 9 13 Melee . | . . . . Ram . | . . . . Kick . | . . . . Crush . | . . . . Escape Stasis . | . . . . Rewire . | . . . . Trap 1 | . . . 1 Miscellaneous . | . . . . Route ------- -11/Scrapyard -10/Materials (discovered 3 exits: [*Mat] / [*Min x2]) -10/Mines -10/Subcaves History --------- Turn | Location | Event 15 | -11/Scrapyard | Discovered new exit (range 15) 74 | -11/Scrapyard | Entered Materials 166 | -10/Materials | Discovered new exit (range 15) 238 | -10/Materials | Discovered new exit (range 15) 328 | -10/Materials | Build established: Mutant 527 | -10/Materials | Discovered new exit (range 8) 549 | -10/Materials | Lost 4 parts (1p1n2w) 672 | -10/Materials | Entered Mines 677 | -10/Mines | Core integrity fell below 50% 917 | -10/Mines | Discovered new exit (range 4) 926 | -10/Mines | Entered Subcaves 981 | -10/Subcaves | Shifting Twisted Machinery released Flamer 984 | -10/Subcaves | Shifting Twisted Machinery released Piercing Trap 1012 | -10/Subcaves | Core integrity fell below 20% 1058 | -10/Subcaves | Ambushed by Subdwellers from Twisted Machinery 1314 | -10/Subcaves | A swath of the cavern ceiling suddenly collapsed 1352 | -10/Subcaves | Learned location of Zion (-6) 1352 | -10/Subcaves | Met a Zionite searching for "candidates" 1401 | -10/Subcaves | Destroyed by Y-45 Defender with Heavy Assault Rifle Last Messages --------------- 01123_ Subatomizers dissect the Sub. Monowheel. 01145_ Acquired 10 matter. 01148_ Subatomizers dissect the Disposable Heat Sink. 01290_ Sub. Power Source shoots sparks and powers down. A swath of the cavern ceiling suddenly collapses. 01341_ 3V-GT7(z): "She is not going to be happy we haven't found any suitable candidates yet." 01351_ Acquired 10 matter. 01352_ 3V-GT7(z): "Hey you! It's really dangerous down here, I feel that you could die at any moment. For your health and safety might I suggest a trip to Zion?" World map updated: -6/Zion. 01354_ Acquired Wheel. 01355_ Acquired 10 matter. 01357_ Dropped Wheel. 01357_ Acquired Wheel. Map ----- +----------------------------------------------------+ | | | | | | | | | | | | | | | ?????????????????????????????????????????????????? | | ?????????????????????????????????????????????????? | | ?????????????????????????????????????????????????? | | ?????????????????????????????????????????????????? | | ?????????????????????????????????????????????????? | | ?????????????????????????????????????????????????? | | ?????????????????????????????????????????????????? | | ?????????????????????????????????????????????????? | | ?????????????????????????????????????????????????? | | ?????????????????????????????????????????????????? | | ?????????????????????????????????????????????????? | | ?????????????????????????????????????????????????? | | ?????????????????????????????????????????????????? | | ?????????????????????????????????????????????????? | | ???????####################??????????????????????? | | ######## ## # ## # ## ###????????????????????? | | #????????????????????? | | #????????????????????? | | ### ### #### @ #????????????????????? | | #?######?###??##### #????????????????????? | | ##?????????????????# #????????????????????? | | # ###?????????????????? #????????????????????? | | # #???????????????????? #????????????????????? | | # #???????????????????? #????????????????????? | | % ##??????????????????? ????????????????????? | | # = #####??????????????# ???????????????????? | | ## ##?????????????# Y ??????????????????? | | ?# #?????????????# s ??????????????????? | | ?# # #?????????????## ?????????????????? | | ?### #??????????????? ????????????????? | | ???#### #???????????????%### ????????????????? | | ??????# ##???????????????#???# ?????????????????? | | ??????###????????????????????????????????????????? | | ?????????????????????????????????????????????????? | | ?????????????????????????????????????????????????? | | ?????????????????????????????????????????????????? | | ?????????????????????????????????????????????????? | | ?????????????????????????????????????????????????? | | ?????????????????????????????????????????????????? | | ?????????????????????????????????????????????????? | | ?????????????????????????????????????????????????? | | ?????????????????????????????????????????????????? | | ?????????????????????????????????????????????????? | +----------------------------------------------------+ Best States ------------- Heat Dissipation 35 Energy Generation 15 Energy Capacity 200 Matter Stores 300 Matter Capacity 300 Sight Range 16 Terrain Scan Density 10 Evasion (%) 44 Item Schematics ----------------- None Robot Schematics ------------------ None Fabricated ------------ Nothing Repaired ---------- Nothing Alien Tech Used ----------------- None Achievements -------------- None Challenges ------------ None Game ------ Seed GravmagVampiricDiverter Manual? 0 Play Time 00:13:43 Cumulative 111.0 hours Start 2025.10.08 @ 23:57:53 End 2025.10.09 @ 00:14:37 Sessions 1 Manual Loads 0 Difficulty Rogue Special Mode None Game No. 68 Rogue 68 Adventurer 0 Explorer 0 Win Type - Total 2 Types 1/0/0/1/0/0/0/0/0/0 Lore% 44 Gallery% 49 Achievement% 51 Wizard Run 0 Options --------- Layout 1 ASCII 0 Keyboard 1 Movement Arrows Keybinds 0 Fullscreen 2 Font 24/Smallcaps Map View 50x35 Zoom Use 0% Tactical HUD 1 Map Filters NONE Filters NONE Steam 1 RUN: f2e72ac8-8173-46b4-b368-cbbf21974170